fUST/lending_fUST_20250831
["ID","MTS","AMOUNT","RATE_DAILY","PERIOD"]
[382313317,1756573844573,-151.0,0.00019178,2]
[382313318,1756573844583,-151.0,0.00019178,2]
[382313319,1756573844592,-151.0,0.00019178,2]
[382313320,1756573844602,-480.0,0.00019178,2]
[382313321,1756573844612,-611.68322393,0.00019178,2]
[382313322,1756573844622,-151.369432,0.00019178,2]
[382313323,1756573844632,-480.0,0.00019178,2]
[382313324,1756573844641,-891.84,0.00019178,2]
[382313325,1756573844651,-983.24,0.00019178,2]
[382313326,1756573844660,-516.1,0.00019178,2]
[382313327,1756573844669,-480.0,0.00019178,2]
[382313328,1756573844679,-1511.62,0.00019178,2]
[382313329,1756573844689,-480.0,0.00019178,2]
[382313330,1756573844698,-480.0,0.00019178,2]
[382313331,1756573844708,-480.0,0.00019178,2]
[382313332,1756573844718,-480.0,0.00019178,2]
[382313333,1756573844727,-490.05486214,0.00019178,2]
[382313334,1756573844736,-480.0,0.00019178,2]
[382313335,1756573844746,-480.0,0.00019178,2]
[382313336,1756573844756,-480.0,0.00019178,2]
[382313337,1756573844765,-480.0,0.00019178,2]
[382313338,1756573844775,-480.0,0.00019178,2]
[382313339,1756573844785,-481.26834988,0.00019178,2]
[382313340,1756573844794,-480.0,0.00019178,2]
[382313341,1756573844803,-673.49,0.00019178,2]
[382313342,1756573844813,-1748.43,0.00019178,2]
[382313343,1756573844823,-480.0,0.00019178,2]
[382313344,1756573844833,-151.0,0.00019178,2]
[382313345,1756573844843,-151.0,0.00019178,2]
[382313346,1756573844853,-863.43,0.00019178,2]
[382313347,1756573844862,-480.0,0.00019178,2]
[382313348,1756573844871,-521.65,0.00019178,2]
[382313349,1756573844881,-699.11,0.00019178,2]
[382313350,1756573844890,-480.0,0.00019178,2]
[382313351,1756573844900,-480.0,0.00019178,2]
[382313352,1756573844910,-727.47,0.00019178,2]
[382313353,1756573844920,-480.0,0.00019178,2]
[382313354,1756573844929,-480.0,0.00019178,2]
[382313355,1756573844939,-480.0,0.00019178,2]
[382313356,1756573844949,-751.34,0.00019178,2]
[382313357,1756573844958,-480.0,0.00019178,2]
[382313358,1756573844967,-1285.5,0.00019178,2]
[382313359,1756573844977,-480.0,0.00019178,2]
[382313360,1756573844987,-480.0,0.00019178,2]
[382313361,1756573844997,-480.0,0.00019178,2]
[382313362,1756573845006,-480.0,0.00019178,2]
[382313363,1756573845016,-480.0,0.00019178,2]
[382313364,1756573845030,-480.0,0.00019178,2]
[382313365,1756573845040,-480.0,0.00019178,2]
[382313366,1756573845054,-480.0,0.00019178,2]
[382313367,1756573845064,-517.62,0.00019178,2]
[382313368,1756573845074,-552.11,0.00019178,2]
[382313369,1756573845095,-748.15,0.00019178,2]
[382313370,1756573845111,-480.0,0.00019178,2]
[382313371,1756573845123,-480.0,0.00019178,2]
[382313372,1756573845133,-480.0,0.00019178,2]
[382313373,1756573845143,-1665.42,0.00019178,2]
[382313374,1756573845153,-780.25,0.00019178,2]
[382313375,1756573845163,-480.0,0.00019178,2]
[382313376,1756573845173,-480.0,0.00019178,2]
[382313377,1756573845182,-480.0,0.00019178,2]
[382313378,1756573845192,-500.0,0.00019178,2]
[382313379,1756573845201,-615.82,0.00019178,2]
[382313380,1756573845212,-3816.68,0.00019178,2]
[382313381,1756573845222,-483.56649835,0.00019178,2]
[382313382,1756573845232,-1667.86,0.00019178,2]
[382313383,1756573845242,-1537.58,0.00019178,2]
[382313384,1756573845251,-1153.0,0.00019178,2]
[382313385,1756573845260,-480.0,0.00019178,2]
[382313386,1756573845269,-480.0,0.00019178,2]
[382313387,1756573845279,-480.0,0.00019178,2]
[382313388,1756573845288,-151.0,0.00019178,2]
[382313389,1756573845297,-151.0,0.00019178,2]
[382313390,1756573845307,-480.0,0.00019178,2]
[382313391,1756573845316,-480.0,0.00019178,2]
[382313392,1756573845326,-480.0,0.00019178,2]
[382313393,1756573845335,-480.0,0.00019178,2]
[382313394,1756573845344,-480.0,0.00019178,2]
[382313395,1756573845353,-480.0,0.00019178,2]
[382313396,1756573845374,-480.0,0.00019178,2]
[382313397,1756573845383,-843.65,0.00019178,2]
[382313398,1756573845393,-480.0,0.00019178,2]
[382313399,1756573845403,-1475.33,0.00019178,2]
[382313400,1756573845412,-793.05,0.00019178,2]
[382313401,1756573845427,-480.0,0.00019178,2]
[382313402,1756573845436,-174.4601284,0.00019178,2]
[382313403,1756573845446,-521.67,0.00019178,2]
[382313404,1756573845455,-480.0,0.00019178,2]
[382313405,1756573845466,-151.0,0.00019178,2]
[382313406,1756573845475,-500.0,0.00019178,2]
[382313407,1756573845485,-151.0,0.00019178,2]
[382313408,1756573845496,-151.0,0.00019178,2]
[382313409,1756573845506,-480.0,0.00019178,2]
[382313410,1756573845515,-485.40736266,0.00019178,2]
[382313411,1756573845530,-151.0,0.00019178,2]
[382313412,1756573845540,-151.0,0.00019178,2]
[382313413,1756573845550,-151.0,0.00019178,2]
[382313414,1756573845559,-151.0,0.00019178,2]
[382313415,1756573845569,-635.65,0.00019178,2]
[382313416,1756573845579,-651.12,0.00019178,2]
[382313417,1756573845589,-151.0,0.00019178,2]
[382313418,1756573845599,-151.0,0.00019178,2]
[382313419,1756573845609,-187.698255,0.00019178,2]
[382313420,1756573845619,-151.0,0.00019178,2]
[382313421,1756573845628,-1726.69,0.00019178,2]
[382313422,1756573845637,-480.0,0.00019178,2]
[382313423,1756573845647,-480.0,0.00019178,2]
[382313424,1756573845656,-480.0,0.00019178,2]
[382313425,1756573845666,-613.83,0.00019178,2]
[382313426,1756573845675,-480.0,0.00019178,2]
[382313427,1756573845685,-616.82,0.00019178,2]
[382313429,1756573845694,-532.48999366,0.00019178,2]
[382313430,1756573845706,-556.02,0.00019178,2]
[382313431,1756573845715,-737.23,0.00019178,2]
[382313432,1756573845724,-151.0,0.00019178,2]
[382313433,1756573845734,-480.0,0.00019178,2]
[382313434,1756573845743,-151.0,0.00019178,2]
[382313435,1756573845752,-151.0,0.00019178,2]
[382313436,1756573845762,-480.0,0.00019178,2]
[382313437,1756573845771,-151.0,0.00019178,2]
[382313438,1756573845780,-151.0,0.00019178,2]
[382313439,1756573845790,-151.0,0.00019178,2]
[382313441,1756573845799,-725.89,0.00019178,2]
[382313443,1756573845809,-151.0,0.00019178,2]
[382313444,1756573845819,-151.0,0.00019178,2]
[382313445,1756573845830,-480.0,0.00019178,2]
[382313446,1756573845839,-208.577143,0.00019178,2]
[382313447,1756573845848,-151.0,0.00019178,2]
[382313448,1756573845857,-1341.75,0.00019178,2]
[382313449,1756573845867,-151.0,0.00019178,2]
[382313450,1756573845878,-480.0,0.00019178,2]
[382313451,1756573845887,-151.0,0.00019178,2]
[382313452,1756573845897,-480.0,0.00019178,2]
[382313453,1756573845906,-151.0,0.00019178,2]
[382313454,1756573845916,-1112.25,0.00019178,2]
[382313455,1756573845925,-151.0,0.00019178,2]
[382313456,1756573845939,-151.0,0.00019178,2]
[382313457,1756573845951,-178.764604,0.00019178,2]
[382313458,1756573845961,-480.0,0.00019178,2]
[382313459,1756573845971,-151.0,0.00019178,2]
[382313460,1756573845980,-465.03776417,0.00019178,2]
[382313461,1756573845990,-151.0,0.00019178,2]
[382313462,1756573845999,-571.3,0.00019178,2]
[382313463,1756573846009,-480.0,0.00019178,2]
[382313464,1756573846018,-480.0,0.00019178,2]
[382313465,1756573846027,-782.47,0.00019178,2]
[382313466,1756573846037,-852.89,0.00019178,2]
[382313467,1756573846047,-480.0,0.00019178,2]
[382313468,1756573846056,-1797.72,0.00019178,2]
[382313469,1756573846066,-208.590743,0.00019178,2]
[382313470,1756573846076,-208.590743,0.00019178,2]
[382313471,1756573846085,-208.590743,0.00019178,2]
[382313472,1756573846095,-480.0,0.00019178,2]
[382313473,1756573846251,-208.590743,0.00019178,2]
[382313474,1756573846261,-208.590743,0.00019178,2]
[382313475,1756573846272,-208.590743,0.00019178,2]
[382313476,1756573846281,-208.590743,0.00019178,2]
[382313477,1756573846294,-208.590743,0.00019178,2]
[382313478,1756573846303,-208.590743,0.00019178,2]
[382313479,1756573846313,-480.0,0.00019178,2]
[382313480,1756573846323,-208.590743,0.00019178,2]
[382313481,1756573846334,-248.40032969,0.00019178,2]
[382313482,1756573846344,-208.590743,0.00019178,2]
[382313483,1756573846378,-208.590743,0.00019178,2]
[382313484,1756573846388,-480.0,0.00019178,2]
[382313485,1756573846397,-1554.92,0.00019178,2]
[382313486,1756573846407,-961.3,0.00019178,2]
[382313487,1756573846416,-480.0,0.00019178,2]
[382313488,1756573846429,-480.0,0.00019178,2]
[382313489,1756573846439,-486.46,0.00019178,2]
[382313490,1756573846448,-480.0,0.00019178,2]
[382313491,1756573846458,-480.0,0.00019178,2]
[382313492,1756573846467,-1703.38,0.00019178,2]
[382313493,1756573846476,-480.0,0.00019178,2]
[382313494,1756573846486,-728.42,0.00019178,2]
[382313495,1756573846496,-480.0,0.00019178,2]
[382313496,1756573846505,-480.0,0.00019178,2]
[382313497,1756573846515,-480.0,0.00019178,2]
[382313498,1756573846524,-151.0,0.00019178,2]
[382313499,1756573846534,-151.0,0.00019178,2]
[382313500,1756573846543,-151.0,0.00019178,2]
[382313501,1756573846552,-1646.97,0.00019178,2]
[382313502,1756573846563,-151.0,0.00019178,2]
[382313503,1756573846572,-261.758372,0.00019178,2]
[382313504,1756573846582,-480.0,0.00019178,2]
[382313505,1756573846591,-487.24,0.00019178,2]
[382313506,1756573846601,-480.0,0.00019178,2]
[382313507,1756573846611,-480.0,0.00019178,2]
[382313509,1756573846621,-480.0,0.00019178,2]
[382313510,1756573846630,-480.0,0.00019178,2]
[382313511,1756573846640,-480.0,0.00019178,2]
[382313512,1756573846649,-757.44,0.00019178,2]
[382313513,1756573846661,-480.0,0.00019178,2]
[382313514,1756573846671,-480.0,0.00019178,2]
[382313516,1756573846681,-480.0,0.00019178,2]
[382313518,1756573846692,-480.0,0.00019178,2]
[382313520,1756573846702,-480.0,0.00019178,2]
[382313522,1756573846712,-830.95,0.00019178,2]
[382313524,1756573846721,-480.0,0.00019178,2]
[382313526,1756573846732,-480.0,0.00019178,2]
[382313527,1756573846741,-1674.92,0.00019178,2]
[382313529,1756573846751,-2217.77,0.00019178,2]
[382313531,1756573846760,-480.0,0.00019178,2]
[382313533,1756573846769,-480.0,0.00019178,2]
[382313535,1756573846779,-550.26,0.00019178,2]
[382313537,1756573846788,-480.0,0.00019178,2]
[382313539,1756573846798,-1969.36,0.00019178,2]
[382313541,1756573846807,-480.0,0.00019178,2]
[382313543,1756573846817,-1841.09,0.00019178,2]
[382313545,1756573846827,-480.0,0.00019178,2]
[382313547,1756573846837,-480.0,0.00019178,2]
[382313548,1756573846846,-1810.52,0.00019178,2]
[382313550,1756573846856,-480.0,0.00019178,2]
[382313552,1756573846865,-783.42,0.00019178,2]
[382313554,1756573846875,-637.605808,0.00019178,2]
[382313556,1756573846884,-637.605808,0.00019178,2]
[382313557,1756573846894,-637.605808,0.00019178,2]
[382313558,1756573846905,-480.0,0.00019178,2]
[382313559,1756573846915,-1457.25,0.00019178,2]
[382313560,1756573846924,-637.605808,0.00019178,2]
[382313561,1756573846933,-637.605808,0.00019178,2]
[382313562,1756573846943,-637.605808,0.00019178,2]
[382313563,1756573846953,-637.605808,0.00019178,2]
[382313564,1756573846962,-480.0,0.00019178,2]
[382313565,1756573846972,-637.605808,0.00019178,2]
[382313566,1756573846981,-637.605808,0.00019178,2]
[382313567,1756573846991,-480.0,0.00019178,2]
[382313568,1756573847001,-637.605808,0.00019178,2]
[382313569,1756573847011,-637.605808,0.00019178,2]
[382313570,1756573847020,-493.98,0.00019178,2]
[382313571,1756573847029,-599.24,0.00019178,2]
[382313572,1756573847039,-637.605808,0.00019178,2]
[382313573,1756573847048,-1607.09,0.00019178,2]
[382313574,1756573847057,-480.0,0.00019178,2]
[382313575,1756573847066,-808.58,0.00019178,2]
[382313576,1756573847076,-1611.01,0.00019178,2]
[382313577,1756573847086,-958.81,0.00019178,2]
[382313578,1756573847095,-1877.29,0.00019178,2]
[382313579,1756573847105,-511.45694253,0.00019178,2]
[382313580,1756573847115,-480.0,0.00019178,2]
[382313581,1756573847124,-624.39,0.00019178,2]
[382313583,1756573847133,-588.79,0.00019178,2]
[382313585,1756573847143,-480.0,0.00019178,2]
[382313586,1756573847152,-487.89,0.00019178,2]
[382313587,1756573847162,-6455.47,0.00019178,2]
[382313588,1756573847172,-480.0,0.00019178,2]
[382313589,1756573847182,-480.0,0.00019178,2]
[382313590,1756573847191,-480.0,0.00019178,2]
[382313591,1756573847201,-784.38,0.00019178,2]
[382313592,1756573847210,-849.69,0.00019178,2]
[382313593,1756573847220,-4509.38,0.00019178,2]
[382313594,1756573847229,-8258.01,0.00019178,2]
[382313595,1756573847238,-480.0,0.00019178,2]
[382313596,1756573847248,-556.41,0.00019178,2]
[382313597,1756573847257,-480.0,0.00019178,2]
[382313598,1756573847267,-480.0,0.00019178,2]
[382313599,1756573847277,-480.0,0.00019178,2]
[382313600,1756573847286,-500.0,0.00019178,2]
[382313601,1756573847295,-480.0,0.00019178,2]
[382313602,1756573847305,-1461.77,0.00019178,2]
[382313603,1756573847314,-480.0,0.00019178,2]
[382313604,1756573847324,-1030.33,0.00019178,2]
[382313605,1756573847334,-480.0,0.00019178,2]
[382313606,1756573847343,-2977.81,0.00019178,2]
[382313607,1756573847352,-480.0,0.00019178,2]
[382313608,1756573847361,-569.68,0.00019178,2]
[382313609,1756573847371,-692.11,0.00019178,2]
[382313610,1756573847381,-991.16,0.00019178,2]
[382313611,1756573847391,-2524.54,0.00019178,2]
[382313612,1756573847400,-480.0,0.00019178,2]
[382313613,1756573847410,-480.0,0.00019178,2]
[382313614,1756573847422,-480.0,0.00019178,2]
[382313615,1756573847432,-1272.23,0.00019178,2]
[382313616,1756573847441,-480.0,0.00019178,2]
[382313617,1756573847451,-151.0,0.00019178,2]
[382313618,1756573847463,-735.42356272,0.00019178,2]
[382313686,1756573849560,-101.10643728,0.00019178,2]
[382313688,1756573849570,-151.0,0.00019178,2]
[382313690,1756573849580,-1631.26,0.00019178,2]
[382313692,1756573849590,-1963.86,0.00019178,2]
[382313694,1756573849600,-480.0,0.00019178,2]
[382313696,1756573849610,-600.23,0.00019178,2]
[382313698,1756573849619,-606.4,0.00019178,2]
[382313700,1756573849628,-151.0,0.00019178,2]
[382313702,1756573849637,-151.0,0.00019178,2]
[382313704,1756573849647,-151.0,0.00019178,2]
[382313706,1756573849656,-524.76141877,0.00019178,2]
[382313708,1756573849665,-151.0,0.00019178,2]
[382313710,1756573849676,-515.84,0.00019178,2]
[382313712,1756573849686,-6005.78,0.00019178,2]
[382313714,1756573849695,-606.06,0.00019178,2]
[382313716,1756573849705,-151.0,0.00019178,2]
[382313718,1756573849714,-480.0,0.00019178,2]
[382313720,1756573849724,-790.07,0.00019178,2]
[382313722,1756573849733,-480.0,0.00019178,2]
[382313724,1756573849743,-480.0,0.00019178,2]
[382313726,1756573849752,-480.0,0.00019178,2]
[382313728,1756573849762,-480.0,0.00019178,2]
[382313730,1756573849771,-790.98,0.00019178,2]
[382313732,1756573849780,-480.0,0.00019178,2]
[382313734,1756573849789,-551.88,0.00019178,2]
[382313736,1756573849798,-775.63,0.00019178,2]
[382313737,1756573849808,-480.0,0.00019178,2]
[382313740,1756573849818,-1486.97,0.00019178,2]
[382313742,1756573849827,-977.04,0.00019178,2]
[382313744,1756573849838,-528.21,0.00019178,2]
[382313746,1756573849848,-480.0,0.00019178,2]
[382313747,1756573849857,-573.88,0.00019178,2]
[382313749,1756573849867,-480.0,0.00019178,2]
[382313751,1756573849876,-710.6,0.00019178,2]
[382313753,1756573849885,-151.0,0.00019178,2]
[382313755,1756573849894,-1364.33,0.00019178,2]
[382313757,1756573849903,-1548.77,0.00019178,2]
[382313759,1756573849913,-151.0,0.00019178,2]
[382313761,1756573849922,-151.0,0.00019178,2]
[382313763,1756573849932,-480.0,0.00019178,2]
[382313765,1756573849942,-1717.9,0.00019178,2]
[382313767,1756573849951,-844.93,0.00019178,2]
[382313769,1756573849961,-858.7,0.00019178,2]
[382313771,1756573849970,-480.0,0.00019178,2]
[382313773,1756573849980,-790.14,0.00019178,2]
[382313775,1756573849989,-480.0,0.00019178,2]
[382313777,1756573849998,-480.0,0.00019178,2]
[382313780,1756573850008,-480.0,0.00019178,2]
[382313781,1756573850018,-2437.55,0.00019178,2]
[382313783,1756573850027,-1649.51,0.00019178,2]
[382313785,1756573850037,-480.0,0.00019178,2]
[382313787,1756573850047,-1789.73,0.00019178,2]
[382313789,1756573850057,-480.0,0.00019178,2]
[382313792,1756573850067,-480.0,0.00019178,2]
[382313794,1756573850076,-46.76093602,0.00019178,2]
[382313796,1756573850091,-416.15086266,0.00019178,2]
[382313798,1756573850101,-593.82,0.00019178,2]
[382313800,1756573850111,-480.0,0.00019178,2]
[382313802,1756573850120,-480.0,0.00019178,2]
[382313804,1756573850129,-57.24446734,0.00019178,2]
[382313807,1756573850141,-564.29349995,0.00019178,2]
[382315584,1756574724124,565.29622,0.00013699,2]
[382315642,1756575032423,-760.0,0.00018158,2]
[382315643,1756575032433,-168.0,0.00018249,2]
[382315644,1756575032443,-168.0,0.00018311,2]
[382315645,1756575032452,-50.21603131,0.00018328,2]
[382315690,1756575038425,-117.78396869,0.00018328,2]
[382315692,1756575038434,-168.0,0.0001842,2]
[382315694,1756575038444,-300.0,0.00018442,2]
[382315696,1756575038454,-1200.0,0.00018442,2]
[382315698,1756575038464,-164.21604059,0.00018442,2]
[382315700,1756575038476,-331.63521733,0.00018442,2]
[382315702,1756575038485,-232.26003554,0.00018442,2]
[382315704,1756575038495,-293.78450284,0.00018442,2]
[382315705,1756575038505,-371.24065421,0.00018442,2]
[382315706,1756575038516,-128.75934579,0.00018442,2]
[382315707,1756575038526,-326.42314965,0.00018442,2]
[382315708,1756575038538,-78.88116674,0.00018442,2]
[382315709,1756575038547,-500.0,0.00018442,2]
[382315711,1756575038556,-500.0,0.00018442,2]
[382315712,1756575038566,-500.0,0.00018442,2]
[382315713,1756575038575,-500.0,0.00018442,2]
[382315714,1756575038584,-500.0,0.00018442,2]
[382315716,1756575038594,-419.56152925,0.00018442,2]
[382315717,1756575038605,-80.43847075,0.00018442,2]
[382315718,1756575038615,-500.0,0.00018442,2]
[382315719,1756575038625,-72.22223069,0.00018442,2]
[382315721,1756575038654,-427.77776931,0.00018442,2]
[382315723,1756575038665,-19059.34196532,0.00018443,2]
[382315727,1756575038694,-11426.67810676,0.00018443,2]
[382315729,1756575038706,-4294.17921322,0.00018443,2]
[382315853,1756575040475,-6985.00054922,0.00018443,2]
[382315857,1756575040535,-70619.41391554,0.00018443,2]
[382315858,1756575040547,-7918.61214959,0.00018443,2]
[382315859,1756575040593,-1291.65754788,0.00018443,2]
[382315860,1756575040624,-4000.0,0.00018443,2]
[382315861,1756575040635,-57829.66633032,0.00018443,2]
[382315862,1756575040647,-594.4003059,0.00018443,2]
[382315875,1756575043396,-92850.24201611,0.00018443,2]
[382315877,1756575043410,-46424.10493429,0.00018443,2]
[382315878,1756575043435,-5639.2999998,0.00018443,2]
[382315879,1756575043450,-817.46171276,0.00018443,2]
[382315886,1756575046416,-538.66493114,0.00018443,2]
[382315887,1756575046427,-15265.04471273,0.00018443,2]
[382315888,1756575046439,-8560.83440763,0.00018443,2]
[382315889,1756575046477,-854.95877278,0.00018443,2]
[382315890,1756575046488,-1296.30343871,0.00018443,2]
[382315891,1756575046501,-619.90353251,0.00018443,2]
[382315892,1756575046590,-104520.14180179,0.00018443,2]
[382315893,1756575046599,-3182.37739653,0.00018473,2]
[382315894,1756575046608,-168.0,0.00018572,2]
[382315895,1756575046618,-760.0,0.00018622,2]
[382315896,1756575046628,-168.0,0.00018684,2]
[382315897,1756575046637,-168.0,0.00018822,2]
[382315898,1756575046647,-1200.0,0.00018889,2]
[382315899,1756575046659,-529.89603018,0.00018929,2]
[382315900,1756575046669,-11361.55901651,0.00018929,2]
[382315901,1756575046680,-417.15472785,0.00018929,2]
[382315902,1756575046691,-845.75060209,0.00018929,2]
[382315903,1756575046701,-160.0,0.00018929,2]
[382315904,1756575046712,-160.0,0.00018929,2]
[382315905,1756575046723,-217.34977173,0.00018929,2]
[382315906,1756575046733,-216.25802849,0.00018929,2]
[382315907,1756575046743,-160.0,0.00018929,2]
[382315908,1756575046752,-160.0,0.00018929,2]
[382315909,1756575046761,-425.65682239,0.00018929,2]
[382315910,1756575046770,-160.0,0.00018929,2]
[382315911,1756575046780,-232.73020027,0.00018929,2]
[382315912,1756575046789,-372.274,0.00018945,2]
[382315913,1756575046799,-13615.4808598,0.00019,2]
[382315914,1756575046809,-168.0,0.00019013,2]
[382315915,1756575046818,-187.78006525,0.00019067,2]
[382315916,1756575046827,-173.90427681,0.00019078,2]
[382315917,1756575046837,-191937.98710168,0.00019078,2]
[382315939,1756575708815,537.031409,0.00013699,2]
[382315940,1756575951613,4480.266714,0.00018011,2]
[382315941,1756575951635,519.733286,0.00018011,2]
[382316007,1756576232861,-330.0,0.00018197,2]
[382316009,1756576232871,-330.0,0.00018282,2]
[382316011,1756576232880,-1200.0,0.00018331,2]
[382316013,1756576232890,-1200.0,0.00018332,2]
[382316015,1756576232899,-300.0,0.00018332,2]
[382316017,1756576232911,-187.78006525,0.00018332,2]
[382316019,1756576232922,-9908.92995085,0.00018333,2]
[382316021,1756576232931,-2961.91,0.00018333,3]
[382316023,1756576232941,-1480.96,0.00018333,3]
[382316025,1756576232951,-740.48,0.00018333,3]
[382316027,1756576232960,-370.24,0.00018333,3]
[382316029,1756576232969,-185.12,0.00018333,3]
[382316031,1756576232979,-555.38,0.00018333,3]
[382316033,1756576232988,-373.36982977,0.00018342,2]
[382316035,1756576232997,-500.0,0.00018342,2]
[382316037,1756576233007,-500.0,0.00018342,2]
[382316039,1756576233017,-491.09966679,0.00018342,2]
[382316041,1756576233026,-353.87523,0.00018342,2]
[382316043,1756576233035,-500.0,0.00018342,2]
[382316044,1756576233046,-587.34953461,0.00018342,2]
[382316045,1756576233055,-616.25311484,0.00018342,2]
[382316046,1756576233065,-545.03381293,0.00018342,2]
[382316047,1756576233074,-500.0,0.00018342,2]
[382316048,1756576233084,-500.0,0.00018342,2]
[382316049,1756576233094,-500.0,0.00018342,2]
[382316050,1756576233104,-500.0,0.00018342,2]
[382316051,1756576233113,-500.0,0.00018342,2]
[382316052,1756576233123,-500.0,0.00018342,2]
[382316053,1756576233133,-239.88106416,0.00018342,2]
[382316054,1756576233143,-500.0,0.00018342,2]
[382316055,1756576233153,-500.0,0.00018342,2]
[382316056,1756576233163,-561.92135154,0.00018342,2]
[382316057,1756576233173,-500.0,0.00018342,2]
[382316058,1756576233183,-111264.01002867,0.00018343,2]
[382316059,1756576233207,-2006.04214884,0.00018343,2]
[382316060,1756576235962,330.0,0.00017918,2]
[382316061,1756576238427,-644.02348662,0.00018343,2]
[382316062,1756576238531,-994.07047768,0.00018343,2]
[382316063,1756576238543,-5940.92269438,0.00018343,2]
[382316064,1756576238554,-1457.6793555,0.00018343,2]
[382316235,1756576240688,-330.0,0.00018279,2]
[382316237,1756576240698,-29.95079278,0.00018343,2]
[382316511,1756576243570,-5000.0,0.00018343,2]
[382316811,1756576246822,-2971.18365267,0.00018343,2]
[382318619,1756576595935,-2000.0,0.00018333,2]
[382318620,1756576595964,-2000.0,0.00018333,2]
[382318621,1756576595997,-800.01,0.00018341,2]
[382318622,1756576596143,-399.99,0.00018341,2]
[382318623,1756576596174,-300.0,0.00018341,2]
[382318624,1756576596204,-459.0,0.00018342,2]
[382318625,1756576596234,-207.96187349,0.00018361,2]
[382318626,1756576596266,-195.0,0.00018426,2]
[382318627,1756576596297,-330.0,0.00018432,2]
[382318628,1756576596330,-195.0,0.00018518,2]
[382318629,1756576596359,-2600.0,0.0001852,2]
[382318630,1756576597180,-6885.22045009,0.00018643,2]
[382318631,1756576602199,-10000.01,0.00018643,2]
[382318632,1756576602375,-3726.93096919,0.00018643,2]
[382318633,1756576602448,-2546.14806162,0.00018643,2]
[382318634,1756576602501,-195.0,0.00018679,2]
[382318635,1756576602529,-600.94451456,0.00018699,2]
[382318636,1756576602593,-8408.12097088,0.000187,2]
[382318637,1756576602623,-10000.01,0.000187,2]
[382318638,1756576602804,-10000.01,0.000187,2]
[382318639,1756576602896,-10000.01,0.000187,2]
[382318640,1756576603004,-10000.01,0.000187,2]
[382318641,1756576603132,-10000.01,0.000187,2]
[382318642,1756576603243,-10000.01,0.000187,2]
[382318643,1756576603350,-10000.01,0.000187,2]
[382318644,1756576603493,-10000.01,0.000187,2]
[382318646,1756576814304,543.608106,0.00013699,2]
[382318647,1756576856237,-9456.401894,0.00018494,2]
[382318648,1756576856642,-2087.6797833,0.00018494,2]
[382318649,1756576856688,-4175.3595666,0.00018494,2]
[382318650,1756576856730,-1649.2908668,0.00018494,2]
[382318651,1756576856763,-2500.0,0.0001852,2]
[382318652,1756576856792,-203.68513971,0.00018522,2]
[382318653,1756576856822,-515.76574325,0.00018599,2]
[382318654,1756576856850,-571.42246903,0.00018653,2]
[382318655,1756576856908,-2033.77708141,0.00018653,2]
[382318656,1756576856923,-384.48621461,0.00018653,2]
[382318657,1756576856933,-2115.51378539,0.00018689,2]
[382318658,1756576856947,-203.68513971,0.00018689,2]
[382318659,1756576856981,-28.67367879,0.00018689,2]
[382318660,1756576857010,-300.0,0.00018698,2]
[382318661,1756576857039,-277.0,0.00018698,2]
[382318662,1756576857071,-1200.0,0.00018698,2]